Workbook

Sheet 원가계산서
A1: 원 가 계 산 서
A2: 공사명 : 광명시흥 도시첨단산업단지 조성공사 공사기간 : 48개월
A3: 공종 | B3: 명칭 | C3: 단위 | D3: 합계 | E3: 재료비 | F3: 노무비 | G3: 경비
A4: 가. | B4: 순공사비계 | C4: 식 | D4: =SUM(E4:G4) -> 18380071599 | E4: 6364432084 | F4: 7271953990 | G4: 4743685525 | H4: =F4/D26 -> 0.2507433038 | I4: =F4/$D$26*100 -> 25.07433038
B5: 1. 간 접 노 무 비 | C5: 식 | D5: =ROUNDDOWN($F$4*13.8/100,0) -> 1003529650 | E5: 직접노무비×13.8％
B6: 2. 산 재 보 험 료 | C6: 식 | D6: =ROUNDDOWN(($F$4+$D$5)*0.037,0) -> 306192894 | E6: (직접노무비+간접노무비)×3.7％
B7: 3. 고 용 보 험 료 | C7: 식 | D7: =ROUNDDOWN(($F$4+$D$5)*0.0103,0) -> 85237481 | E7: (직접노무비+간접노무비)×1.03％
B8: 4. 건 강 보 험 료 | C8: 식 | D8: =ROUNDDOWN($F$4*0.0343,0) -> 249428021 | E8: 직접노무비×3.43％
B9: 5. 연 금 보 험 료 | C9: 식 | D9: =ROUNDDOWN($F$4*0.045,0) -> 327237929 | E9: 직접노무비×4.5％
B10: 6. 노인장기요양보험료 | C10: 식 | D10: =ROUNDDOWN($D$8*0.1152,0) -> 28734108 | E10: 건강보험료×11.52％
B11: 7. 퇴직공제부금 | C11: 식 | D11: =ROUNDDOWN($F$4*0.023,0) -> 167254941 | E11: 직접노무비×2.30％
B12: 8. 산업안전보건관리비 | C12: 식 | D12: =IF(G12<G13,G12,G13) -> 322364166 | E12: A) (직노+재료비+도급자관급)×1.97％ = | G12: =ROUNDDOWN(($F$4+$E$4+(D27/1.1/1.0054))*0.0197,0) -> 411075176
E13: B) (직노+재료비)×1.97％ ×1.2 = | G13: =ROUNDDOWN((($F$4+$E$4)*0.0197)*1.2,0) -> 322364166
B14: 9. 하도급대금지급보증서발급수수료 | C14: 식 | D14: =ROUNDDOWN($D$4*0,0) -> 0 | E14: 직접공사비×0.075％
B15: 9. 건설기계대여대금지급보증서발급 | C15: 식 | D15: =ROUNDDOWN($D$4*0.004,0) -> 73520286 | E15: 직접공사비×0.40％
B16: 10. 환경보전비 | C16: 식 | D16: =ROUNDDOWN(D4*0.006,0) -> 110280429 | E16: 직접공사비×0.60％
B17: 11. 기 타 경 비 | C17: 식 | D17: =ROUNDDOWN(($F$4+$D$5+$E$4)*0.103,0) -> 1507911319 | E17: (직접노무비+간접노무비+재료비)*10.3％ | I17: =D17/$D$26*100 -> 5.199409491
B18: 12. 품 질 관 리 비 | C18: 식 | D18: 390210137
A20: 나. | B20: 소 계 | D20: =SUM(D4:D19) -> 22951972960 | H20: =D20/D4 -> 1.248742304
B21: 13. 일 반 관 리 비 | C21: 식 | D21: =ROUNDDOWN(D20*0.055,0) -> 1262358512 | E21: (나. 소계)×5.5％ | H21: 이윤조정 | I21: =D21/$D$26*100 -> 4.352722037
B22: 14. 이 윤 | C22: 식 | D22: =ROUND(($D$20+$D$21-$E$4)*0.12,0)-H22 -> 2141987712 | E22: (다. 소계 + 일반관리비 - 재료비)*12.0％ | H22: 215 | I22: =D22/$D$26*100 -> 7.38576009
B23: 15. 안 전 관 리비 | C23: 식 | D23: 8760816 | E23: 안전관리계획작성비, 정기안전점검비
A24: 다. | B24: 총원가(공급가액) | D24: =SUM(D20:D23) -> 26365080000
B25: 16.부가가치세 | C25: 식 | D25: =ROUNDDOWN((D24)*0.1,-3) -> 2636508000 | E25: 공급가액*10%
A26: 라. | B26: 도급공사비 | D26: =SUM(D24:D25) -> 29001588000
B27: 17. 지 급 자 재 비(도급자설치분) | C27: 식 | D27: 7996360000 | H27: 도급자설치도
B28: 18. 지 급 자 재 비(관급자설치분) | C28: 식 | D28: 566050000
A29: 마. | B29: 지급자재소계 | D29: =D27+D28 -> 8562410000
A30: 바 | B30: 총공사비 | D30: =D26+D29 -> 37563998000 | H30: 제경비요율
H42: 재료비
D43: 합 계 | F43: 노무비 | H43: 단 가 | I43: 경 비
D44: 단 가 | E44: 금 액 | F44: 단 가 | G44: 금 액 | I44: 단 가
E45: 98316537 | G45: 6129270
E46: 10155897 | G46: 6129270 | H46: 457.5 | J46: 금 액
D47: 2336.3 | E47: 10155897 | F47: 1410 | G47: 6129270 | I47: 468.8 | J47: 90198514
J48: 2037874
J49: 2037874
